Cogmind - Beta 14 @@@ ROGUE MODE // 2025.01.18 @ 22:43:34 Player: Mathewnd Result: Destroyed by Y-64 Sentinel with KE Penetrator Performance ------------- Evolutions (6) 3000 Regions Visited (23) 4600 Robots Destroyed (77) 385 Value Destroyed (2182) 2182 Prototype IDs (24) 480 Alien Tech Used (0) 0 Bonus (1899) 1899 TOTAL SCORE: 12546 Bonus ------- High Alert Combat Kills 118 Follower Combat Kills 504 Met Data Miner 300 Met Warlord at Base 500 MAIN.C Attacked Warlord 500 Friendly Fire -23 Cogmind --------- Core Integrity 0/1150 Matter 300/300 Energy 100/100 System Corruption 8% Temperature Cool (9) Movement Core (50) Location -4/Extension Parts ------- > --- POWER (2) -------- (None) > --- PROPULSION (6) --- (None) > --- UTILITY (9) ------ Advanced Visual Processing Unit Advanced Signal Interpreter 0b10 Decoder Chip [Scout] System Mapper > --- WEAPON (2) ------- (None) > --- INVENTORY (5) ---- Small Storage Unit Experimental Cloaking Device Hacking Suite Advanced System Shield Nanosword Peak State ------------ > --- POWER ------------ Light Antimatter Reactor Light Antimatter Reactor > --- PROPULSION ------- Cooled Cesium-ion Thruster Cooled Cesium-ion Thruster Cooled Cesium-ion Thruster Biomechanical Wings Electron Diverter Electron Diverter > --- UTILITY ---------- Medium Storage Unit Advanced Visual Processing Unit Advanced Sensor Array Advanced Signal Interpreter Advanced Terrain Scan Processor 0b10 Decoder Chip [Scout] System Mapper Improved System Shield Advanced System Shield > --- WEAPON ----------- Nanosword Spear > --- INVENTORY -------- Reinforced Antimatter Reactor VTOL Module Impulse Thruster Small Storage Unit Advanced Terrain Scanner Nanoactuators Advanced ECM Suite Experimental Cloaking Device Fusion Bomb Launcher Improved Remote Datajack [Rating: 117] Favorites ----------- Power Light Ion Engine Engine Light Ion Engine Power Core Micro Fission Core Reactor Light Antimatter Reactor Propulsion Cooled Cesium-ion Thruster Treads Light Treads Leg Flexi-carbon Leg Wheel Compact Wheel Flight Unit Cooled Cesium-ion Thruster Utility Advanced Visual Processing Unit Device Advanced Sensor Array Storage Small Storage Unit Processor Advanced Visual Processing Unit Hackware System Mapper Protection Heavy Armor Plating Weapon Light Assault Rifle Energy Gun Backup Laser III Ballistic Gun Light Assault Rifle Launcher Missile Launcher Special Weapon Improved Remote Datajack Slashing Weapon Nanosword Piercing Weapon Spear Build | -11 -10 -10 -10 -9 -8 -7 -7 -7 -7 -6 -6 -6 -6 -6 -6 -5 -5 -5 -5 -5 -4 -4 -4 ------- Run | Yrd Mat Min Exi Min Mat Fac Low Low Dat Pro Fac Was Fac Low Zio Pro Fac Upp Upp War Pro Fac Ext Slots Evolved 12 | . . . . . 4 2 . . . . 2 . . . . . 2 . . . . 2 . Power 1 | . . . . . . . . . . . . . . . . . 1 . . . . . . Propulsion 4 | . . . . . 2 1 . . . . . . . . . . 1 . . . . . . Utility 7 | . . . . . 2 1 . . . . 2 . . . . . . . . . . 2 . Weapon . | . . . . . . . . . . . . . . . . . . . . . . . . Parts Attached 152 | 6 . . 2 2 21 10 . . . 3 10 . 14 . 5 5 10 3 1 6 4 23 27 Power 21 | 1 . . . . 2 1 . . . . . . 3 . . . 2 1 . . . 4 7 Engine 13 | 1 . . . . 2 1 . . . . . . 3 . . . 1 1 . . . . 4 Core 1 | . . . . . . . . . . . . . . . . . 1 . . . . . . Reactor 7 | . . . . . . . . . . . . . . . . . . . . . . 4 3 Propulsion 56 | 2 . . 1 . 12 5 . . . 1 . . 5 . 3 . 7 . . 2 2 5 11 Treads 13 | 2 . . . . 11 . . . . . . . . . . . . . . . . . . Leg 3 | . . . . . . . . . . . . . . . . . . . . . . . 3 Wheel 1 | . . . 1 . . . . . . . . . . . . . . . . . . . . Hover . | . . . . . . . . . . . . . . . . . . . . . . . . Flight 39 | . . . . . 1 5 . . . 1 . . 5 . 3 . 7 . . 2 2 5 8 Utility 40 | 1 . . 1 . 2 4 . . . 1 4 . 5 . 1 2 1 1 1 4 1 6 5 Device 20 | . . . . . . 1 . . . . 3 . 4 . . 1 1 . . 2 1 4 3 Storage 5 | 1 . . 1 . . 1 . . . . . . . . . . . . . 1 . . 1 Processor 8 | . . . . . 1 1 . . . 1 1 . 1 . 1 . . . . . . 1 1 Hackware 6 | . . . . . . 1 . . . . . . . . . 1 . 1 1 1 . 1 . Protection 1 | . . . . . 1 . . . . . . . . . . . . . . . . . . Artifact . | . . . . . . . . . . . . . . . . . . . . . . . . Weapon 35 | 2 . . . 2 5 . . . . 1 6 . 1 . 1 3 . 1 . . 1 8 4 Energy Gun . | . . . . . . . . . . . . . . . . . . . . . . . . Energy Cannon . | . . . . . . . . . . . . . . . . . . . . . . . . Ballistic Gun 8 | 2 . . . 2 4 . . . . . . . . . . . . . . . . . . Ballistic Cannon . | . . . . . . . . . . . . . . . . . . . . . . . . Launcher 12 | . . . . . 1 . . . . 1 6 . 1 . . 1 . . . . 1 . 1 Special Weapon 1 | . . . . . . . . . . . . . . . . . . . . . . . 1 Impact Weapon . | . . . . . . . . . . . . . . . . . . . . . . . . Slashing Weapon 12 | . . . . . . . . . . . . . . . . 2 . . . . . 8 2 Piercing Weapon 2 | . . . . . . . . . . . . . . . 1 . . 1 . . . . . Special Melee Weapon . | . . . . . . . . . . . . . . . . . . . . . . . . Unidentified Prototypes 11 | . . . . . 1 . . . . . 1 . 3 . . . . . . 4 . 1 1 Parts Lost 51 | . . . . 1 8 . . . . 1 1 . 1 . . 1 5 4 . 1 3 5 20 Power 11 | . . . . 1 1 . . . . . . . . . . . 1 1 . . 1 2 4 Propulsion 23 | . . . . . 4 . . . . 1 1 . . . . . 3 . . . 1 3 10 Utility 13 | . . . . . 1 . . . . . . . 1 . . 1 1 2 . 1 . . 6 Weapon 4 | . . . . . 2 . . . . . . . . . . . . 1 . . 1 . . Highest Loss Streak 5 | . . . . 1 4 . . . . 1 1 . 1 . . 1 3 4 . 1 3 5 5 To Critical Strikes . | . . . . . . . . . . . . . . . . . . . . . . . . Average Slot Usage (%) 81 | . 85 85 60 76 82 90 92 92 92 90 83 80 85 86 88 93 88 81 87 92 90 90 70 Engine 6 | . 14 14 14 5 8 7 7 7 7 7 6 6 5 6 6 6 4 3 5 5 5 1 3 Treads 8 | . 28 28 26 14 35 . . . . . . . . . . . . . . . . . . Flight 17 | . . . . . . 36 38 38 38 38 32 26 32 33 33 33 32 29 29 29 32 30 13 Device 3 | . . . . . . 6 7 7 7 7 9 13 13 13 9 6 4 2 . . 4 5 3 Storage 7 | . 14 14 14 14 9 7 7 7 7 7 6 6 6 6 6 6 5 5 5 5 5 5 4 Processor 14 | . . . . . 8 7 7 7 7 8 18 20 20 20 23 26 23 23 23 23 17 20 20 Hackware 6 | . . . . . . 6 7 7 7 7 6 6 6 6 6 6 5 4 10 10 11 14 12 Ballistic Gun 7 | . 28 28 2 28 17 15 15 15 15 10 . . . . . . . . . . . . . Slashing Weapon 1 | . . . . . . . . . . . . . . . . 4 5 2 . . . 1 4 Peak Build Rating 117 | 6 6 6 6 7 23 33 31 31 31 33 45 39 60 57 65 68 82 83 75 94 101 117 97 Average Rating 50 | 4 6 6 4 6 15 29 31 31 31 30 36 38 53 57 62 66 76 74 74 84 89 104 77 On Entrance 42 | . 6 6 6 5 6 23 31 31 31 31 33 38 39 57 57 65 68 82 69 75 89 84 92 Naked Turns . | . . . . . . . . . . . . . . . . . . . . . . . . Heaviest Build 61 | 10 10 10 48 45 61 53 22 22 22 22 24 17 17 13 16 18 25 25 15 27 23 37 35 Greatest Support 80 | 40 40 40 40 16 80 80 23 23 23 23 23 19 28 40 30 30 39 42 36 41 41 40 48 Greatest Overweight (x) 5 | . . . 2 2 2 . . . . . 1 . . . . . . . . . . 1 5 Average Overweight (x) . | . . . . 2 . . . . . . . . . . . . . . . . . . . Largest Inventory Capacity 20 | 8 8 8 20 20 20 20 8 8 8 8 8 8 8 8 8 8 8 8 8 10 10 10 10 Average Capacity 10 | 6 8 8 12 20 20 8 8 8 8 8 8 8 8 8 8 8 8 8 8 8 10 10 9 Most Carried 20 | 6 8 8 11 10 20 20 8 8 8 8 8 8 8 8 8 8 8 8 8 10 10 10 10 Average Carried 9 | 4 6 7 8 9 15 8 8 8 8 7 7 7 7 8 8 7 7 7 8 8 7 9 9 Final Capacity 20 | 8 8 8 20 20 20 8 8 8 8 8 8 8 8 8 8 8 8 8 8 10 10 10 5 Final Carried 20 | 6 7 8 11 10 20 8 8 8 8 8 8 8 8 8 8 8 7 8 8 10 7 10 5 Class Distribution -------------------- 26% | Mutant 18% | Scout 18% | Hacker-Scout 7% | Scavenger-Mutant 7% | Hacker-Mutant 6% | Hacker-Sprinter 6% | Scavenger-Sprinter 4% | Scavenger-Scout Dominant Class ---------------- Mutant | -10/Materials Mutant | -10/Mines Mutant | -10/Exiles Mutant | -9/Mines Scavenger-Mutant | -8/Materials Scavenger-Sprinter | -7/Factory Scavenger-Sprinter | -7/Lower Caves Scavenger-Sprinter | -7/Lower Caves Scavenger-Sprinter | -7/Data Miner Scavenger-Sprinter | -6/Proximity Caves Scavenger-Scout | -6/Factory Scavenger-Scout | -6/Waste Scout | -6/Factory Scout | -6/Lower Caves Scout | -6/Zion Scout | -5/Proximity Caves Scout | -5/Factory Scout | -5/Upper Caves Hacker-Sprinter | -5/Upper Caves Hacker-Sprinter | -5/Warlord Hacker-Sprinter | -4/Proximity Caves Hacker-Scout | -4/Factory Hacker-Scout | -4/Extension Resources | -11 -10 -10 -10 -9 -8 -7 -7 -7 -7 -6 -6 -6 -6 -6 -6 -5 -5 -5 -5 -5 -4 -4 -4 ----------- Run | Yrd Mat Min Exi Min Mat Fac Low Low Dat Pro Fac Was Fac Low Zio Pro Fac Upp Upp War Pro Fac Ext Matter Collected 2691 | 260 44 125 . 216 380 . 61 146 . 46 11 . 134 . 252 121 150 20 29 . 130 111 455 Remotely . | . . . . . . . . . . . . . . . . . . . . . . . . Salvage Created 2669 | . 44 44 . . 683 . . . . 48 56 . 3 . . 222 170 30 . . . 137 1232 Parts 153 | . 3 1 . . 43 . . . . 5 8 . . . . 7 8 3 . . 2 13 60 Haulers Intercepted 3 | . . . . . 2 . . . . . . . . . . . . . . . . . 1 Recyclers Shooed 1 | . . . . . . . . . . . . . . . . . 1 . . . . . . Parts Field Recycled . | . . . . . . . . . . . . . . . . . . . . . . . . Retrieved Matter . | . . . . . . . . . . . . . . . . . . . . . . . . Parts Self-Destructed 9 | . . . . . . . . . . 2 . . . . . 4 . 2 . . 1 . . Prevented . | . . . . . . . . . . . . . . . . . . . . . . . . Kills | -11 -10 -10 -10 -9 -8 -7 -7 -7 -7 -6 -6 -6 -6 -6 -6 -5 -5 -5 -5 -5 -4 -4 -4 ------- Run | Yrd Mat Min Exi Min Mat Fac Low Low Dat Pro Fac Was Fac Low Zio Pro Fac Upp Upp War Pro Fac Ext Combat Hostiles Destroyed 47 | . 1 1 . . 17 . . . . 2 6 . . . . 4 . . . . 2 . 14 Melee 11 | . . . . . . . . . . . . . . . . . . . . . . . 11 Guns 15 | . 1 1 . . 13 . . . . . . . . . . . . . . . . . . AOE 21 | . . . . . 4 . . . . 2 6 . . . . 4 . . . . 2 . 3 Classes Destroyed 15 | . 1 . . . 7 . . . . 1 . . 1 . . . 1 1 . . . . 3 Worker 9 | . . . . . 1 . . . . . 1 . . . . . 3 . . . . 1 3 Builder 1 | . . . . . . . . . . . . . 1 . . . . . . . . . . Tunneler 2 | . . . . . . . . . . . . . . . . . . . . . . . 2 Hauler 3 | . . . . . 2 . . . . . . . . . . . . . . . . . 1 Recycler 3 | . . . . . . . . . . . . . . . . . . . . . . . 3 Minesweeper 1 | . . . . . . . . . . . . . . . . . . 1 . . . . . Mechanic 1 | . . . . . 1 . . . . . . . . . . . . . . . . . . Operator 2 | . . . . . . . . . . . . . . . . . 1 . . . . 1 . Drone 1 | . . . . . . . . . . 1 . . . . . . . . . . . . . Watcher 8 | . . . . . 1 . . . . . . . . . . . 3 . . . . 2 2 Swarmer 25 | . . . . . 9 . . . . . 6 . . . . 4 . . . . 2 . 4 Grunt 14 | . 1 1 . . 4 . . . . 1 . . . . . . . . . . . . 7 Brawler 1 | . . . . . . . . . . . . . . . . . . . . . . . 1 Sentry 3 | . . . . . 3 . . . . . . . . . . . . . . . . . . Hunter 3 | . . . . . 1 . . . . . . . . . . . . . . . . . 2 Best Kill Streak 6 | . 1 1 . . 6 . . . . 2 4 . 1 . . 4 3 1 . . 2 2 4 Combat Bots Only 5 | . 1 1 . . 5 . . . . 2 3 . . . . 4 . . . . 2 . 3 Max Kills in Single Turn 4 | . 1 1 . . 4 . . . . 1 2 . 1 . . 3 1 1 . . 2 1 1 Gunslinging . | . . . . . . . . . . . . . . . . . . . . . . . . Exploded 3 | . . . . . 3 . . . . 1 2 . . . . 3 . . . . 2 . 1 Melee 1 | . . . . . . . . . . . . . . . . . . . . . . . 1 Uniques/NPCs Destroyed . | . . . . . . . . . . . . . . . . . . . . . . . . Combat | -11 -10 -10 -10 -9 -8 -7 -7 -7 -7 -6 -6 -6 -6 -6 -6 -5 -5 -5 -5 -5 -4 -4 -4 -------- Run | Yrd Mat Min Exi Min Mat Fac Low Low Dat Pro Fac Was Fac Low Zio Pro Fac Upp Upp War Pro Fac Ext Hostile Shots Fired 511 | . 13 7 . 13 137 6 . . . 7 23 . 9 . . 6 28 53 . 27 5 20 157 Missed 215 | . 8 2 . 2 44 4 . . . 5 11 . 2 . . 2 16 34 . 11 3 9 62 Damage Taken 5637 | . 43 86 . 117 1247 29 . . . 41 157 . 162 . . 81 318 341 . 373 68 578 1996 Core 1705 | . . 14 . 36 135 . . . . . 52 . 40 . . . 58 66 . 102 41 167 994 Absorbed by Shields 25 | . . . . . . . . . . . 25 . . . . . . . . . . . . Regen/Repaired (Parts) 101 | . . . . . . . . . . . . . . . . . . . . 101 . . . Core Remaining (%) 86 | 100 . . . 80 75 . . . . 100 . . . . . 89 . . . . 73 . . Volleys Fired 129 | . 8 8 . 5 83 . . . . 8 4 . . . . 2 . . . . 2 . 9 Largest 2 | . 2 2 . 2 2 . . . . 1 1 . . . . 1 . . . . 1 . 1 Hottest 80 | . 40 40 . 40 46 . . . . 36 43 . . . . 80 . . . . 80 . 52 Shots Fired 224 | . 16 15 . 9 159 . . . . 8 4 . . . . 2 . . . . 2 . 9 Gun 195 | . 16 15 . 9 155 . . . . . . . . . . . . . . . . . . Cannon . | . . . . . . . . . . . . . . . . . . . . . . . . Launcher 24 | . . . . . 4 . . . . 8 4 . . . . 2 . . . . 2 . 4 Special 5 | . . . . . . . . . . . . . . . . . . . . . . . 5 Kinetic 195 | . 16 15 . 9 155 . . . . . . . . . . . . . . . . . . Thermal . | . . . . . . . . . . . . . . . . . . . . . . . . Explosive 24 | . . . . . 4 . . . . 8 4 . . . . 2 . . . . 2 . 4 Electromagnetic . | . . . . . . . . . . . . . . . . . . . . . . . . Robot Hit Streak 19 | . 2 5 . 2 19 . . . . . . . . . . 1 . . . . . . 6 Robot Miss Streak 4 | . 3 2 . 2 3 . . . . 4 . . . . . . . . . . . . . Penetration Max . | . . . . . . . . . . . . . . . . . . . . . . . . Secondary Targets 1 | . . . . . 1 . . . . . . . . . . . . . . . . . . Max Gunslinging Chain 1 | . . . . . 1 . . . . . . . . . . . . . . . . . . Shots Hit Robots 224 | . 6 10 . 5 125 . . . . . . . . . . 4 12 1 . 1 . 7 53 Core Hits 106 | . 2 3 . 1 42 . . . . 5 7 . 1 . . 6 3 1 . . 2 5 28 Critical Kills . | . . . . . . . . . . . . . . . . . . . . . . . . Critical Parts Destroyed . | . . . . . . . . . . . . . . . . . . . . . . . . Critical Strikes 10 | . . . . . . . . . . . . . . . . 2 . . . . . 2 6 Sever 6 | . . . . . . . . . . . . . . . . . . . . . . . 6 Impale 4 | . . . . . . . . . . . . . . . . 2 . . . . . 2 . Melee Attacks 124 | . . . . . . . . . . . . . . . 1 3 27 1 . 1 . 25 66 Impact . | . . . . . . . . . . . . . . . . . . . . . . . . Slashing 103 | . . . . . . . . . . . . . . . . . 27 . . . . 10 66 Piercing 21 | . . . . . . . . . . . . . . . 1 3 . 1 . 1 . 15 . Sneak Attacks 22 | . . . . . . . . . . . . . . . . . 5 1 . . . 1 15 Combat Hostiles 5 | . . . . . . . . . . . . . . . . . . . . . . . 5 Follow-up Attacks . | . . . . . . . . . . . . . . . . . . . . . . . . Damage Inflicted 9770 | . 53 82 . 57 1619 . . . . 304 531 . 32 . . 544 1058 72 . 26 203 403 4786 Guns 1447 | . 53 82 . 46 1266 . . . . . . . . . . . . . . . . . . Cannons . | . . . . . . . . . . . . . . . . . . . . . . . . Explosions 2721 | . . . . . 353 . . . . 304 531 . 32 . . 328 . . . . 203 . 970 Melee 5540 | . . . . . . . . . . . . . . . . 216 1058 72 . 26 . 403 3765 Ramming 62 | . . . . 11 . . . . . . . . . . . . . . . . . . 51 Kinetic 1447 | . 53 82 . 46 1266 . . . . . . . . . . . . . . . . . . Thermal . | . . . . . . . . . . . . . . . . . . . . . . . . Explosive 2721 | . . . . . 353 . . . . 304 531 . 32 . . 328 . . . . 203 . 970 Electromagnetic . | . . . . . . . . . . . . . . . . . . . . . . . . Impact . | . . . . . . . . . . . . . . . . . . . . . . . . Slashing 4924 | . . . . . . . . . . . . . . . . . 1058 . . . . 101 3765 Piercing 616 | . . . . . . . . . . . . . . . . 216 . 72 . 26 . 302 . Highest Corruption 8 | . 4 4 4 4 . . . . . . . . . . . . 2 2 2 7 8 . 8 Average Corruption 3 | . 3 4 4 4 . . . . . . . . . . . . 1 2 2 4 8 . 2 Corruption Purged . | . . . . . . . . . . . . . . . . . . . . . . . . Corruption Blocked . | . . . . . . . . . . . . . . . . . . . . . . . . Effects 48 | . 4 16 11 9 . . . . . . . . . . . . 2 1 1 1 3 . . Message Errors 14 | . . 7 2 3 . . . . . . . . . . . . . . 1 . 1 . . Matter Fused 18 | . 3 5 4 3 . . . . . . . . . . . . 1 1 . . 1 . . Heat Flow Errors 4 | . 1 1 2 . . . . . . . . . . . . . . . . . . . . Energy Discharges 2 | . . . . 1 . . . . . . . . . . . . . . . 1 . . . Parts Fused 1 | . . 1 . . . . . . . . . . . . . . . . . . . . . Data Loss (minor) 6 | . . 1 2 1 . . . . . . . . . . . . 1 . . . 1 . . Alerts 1 | . . . 1 . . . . . . . . . . . . . . . . . . . . Weapon Failures 2 | . . 1 . 1 . . . . . . . . . . . . . . . . . . . Overload Shots . | . . . . . . . . . . . . . . . . . . . . . . . . Overflow Damage 1547 | . . . . . 48 . . . . 37 54 . . . . 89 506 . . . 13 50 750 Projectiles . | . . . . . . . . . . . . . . . . . . . . . . . . Explosions 159 | . . . . . 48 . . . . 37 54 . . . . 7 . . . . 13 . . Melee 1388 | . . . . . . . . . . . . . . . . 82 506 . . . . 50 750 Knockbacks . | . . . . . . . . . . . . . . . . . . . . . . . . Impact . | . . . . . . . . . . . . . . . . . . . . . . . . Kinetic . | . . . . . . . . . . . . . . . . . . . . . . . . Secondary . | . . . . . . . . . . . . . . . . . . . . . . . . Self-Inflicted Damage 198 | . . . . 5 . . . . . . . . 68 . . . . . . . 30 . 95 Shots 3 | . . . . . . . . . . . . . 1 . . . . . . . 1 . 1 Rammed 12 | . . . . 2 . . . . . . . . . . . . . . . . . . 10 Targets Rammed 12 | . . . . 2 . . . . . . . . . . . . . . . . . . 10 Kicked . | . . . . . . . . . . . . . . . . . . . . . . . . Crushed . | . . . . . . . . . . . . . . . . . . . . . . . . Highest Temperature 266 | . 132 227 266 6 28 7 . . . 6 . . . . . 39 59 31 . 24 57 198 . Average Temperature 42 | . 75 86 123 6 11 5 . . . 4 . . . . . 22 26 11 . 10 17 47 . Received Heat Transfer 1027 | . . 51 . 26 378 18 . . . . . . 36 . . 18 78 132 . . 9 85 196 Siege Activations . | . . . . . . . . . . . . . . . . . . . . . . . . Robots Corrupted . | . . . . . . . . . . . . . . . . . . . . . . . . Combat Hostiles . | . . . . . . . . . . . . . . . . . . . . . . . . Parts Fried . | . . . . . . . . . . . . . . . . . . . . . . . . Impact Corruptions . | . . . . . . . . . . . . . . . . . . . . . . . . Robots Melted . | . . . . . . . . . . . . . . . . . . . . . . . . Combat Hostiles . | . . . . . . . . . . . . . . . . . . . . . . . . Parts Melted 1 | . . . . . . . . . . . . . . . . . . . . . . . 1 Heat Transferred . | . . . . . . . . . . . . . . . . . . . . . . . . Parts Sabotaged . | . . . . . . . . . . . . . . . . . . . . . . . . Parts Stolen . | . . . . . . . . . . . . . . . . . . . . . . . . Parts Stripped . | . . . . . . . . . . . . . . . . . . . . . . . . Power Chain Reactions . | . . . . . . . . . . . . . . . . . . . . . . . . Alert | -11 -10 -10 -10 -9 -8 -7 -7 -7 -7 -6 -6 -6 -6 -6 -6 -5 -5 -5 -5 -5 -4 -4 -4 ------- Run | Yrd Mat Min Exi Min Mat Fac Low Low Dat Pro Fac Was Fac Low Zio Pro Fac Upp Upp War Pro Fac Ext Peak Influence 620 | . 30 58 . 67 513 255 . . . . 506 222 309 . . . 474 . . . . 294 620 Initial 177 | . . 11 . . 18 165 . . . . 175 177 155 . . . 91 . . . . 50 97 Average 208 | . 18 23 . 50 284 186 . . . . 305 191 204 . . . 206 . . . . 152 318 Maximum Alert Level 2 | . . . . . 2 1 . . . . 2 1 1 . . . 2 . . . . 1 2 Low Security (%) 62 | 100 100 100 . 100 33 84 . . . . 13 65 54 . . . 65 . . . . 79 48 Level 1 20 | . . . . . 44 15 . . . . 68 34 45 . . . 29 . . . . 20 6 Level 2 17 | . . . . . 21 . . . . . 18 . . . . . 4 . . . . . 44 Level 3 . | . . . . . . . . . . . . . . . . . . . . . . . . Level 4 . | . . . . . . . . . . . . . . . . . . . . . . . . Level 5 . | . . . . . . . . . . . . . . . . . . . . . . . . High Security . | . . . . . . . . . . . . . . . . . . . . . . . . Max Security . | . . . . . . . . . . . . . . . . . . . . . . . . Squads Dispatched 29 | . 2 . . . 4 1 . . . . 1 . 6 . . . 7 . . . . 3 5 Investigation 9 | . . . . . 1 . . . . . . . 3 . . . 3 . . . . 2 . Extermination 4 | . . . . . . 1 . . . . 1 . . . . . 1 . . . . 1 . Reinforcement 10 | . 2 . . . . . . . . . . . 3 . . . 2 . . . . . 3 Assault 2 | . . . . . . . . . . . . . . . . . . . . . . . 2 Garrison 4 | . . . . . 3 . . . . . . . . . . . 1 . . . . . . Intercept . | . . . . . . . . . . . . . . . . . . . . . . . . Searches Triggered . | . . . . . . . . . . . . . . . . . . . . . . . . Data Miner Redirects 4 | . . . . . . . . . . . . . . . . . 1 . . . . . 3 Construction Impeded 3 | . . . . . . . . . . . . . . . . . 1 . . . . . 2 Haulers Reinforced . | . . . . . . . . . . . . . . . . . . . . . . . . Active Scanning Responses . | . . . . . . . . . . . . . . . . . . . . . . . . Cargo Convoy Interrupts . | . . . . . . . . . . . . . . . . . . . . . . . . Stealth | -11 -10 -10 -10 -9 -8 -7 -7 -7 -7 -6 -6 -6 -6 -6 -6 -5 -5 -5 -5 -5 -4 -4 -4 --------- Run | Yrd Mat Min Exi Min Mat Fac Low Low Dat Pro Fac Was Fac Low Zio Pro Fac Upp Upp War Pro Fac Ext Distress Signals 7 | . 1 . . . . . . . . . 1 . 2 . . . 1 . . . . . 2 Communications Jammed . | . . . . . . . . . . . . . . . . . . . . . . . . Distress Signals . | . . . . . . . . . . . . . . . . . . . . . . . . Times Spotted 232 | . 7 4 . 17 18 10 . . . 7 10 4 11 . . 4 27 29 . 11 6 18 49 Peak Tracking Total 17 | . 5 2 . 17 4 8 . . . 7 5 5 4 . . 2 12 14 . 11 3 5 8 Tactical Retreats 40 | . . . . 1 2 1 . . . 1 1 . 4 . . 2 5 5 . . 3 5 10 Traps | -11 -10 -10 -10 -9 -8 -7 -7 -7 -7 -6 -6 -6 -6 -6 -6 -5 -5 -5 -5 -5 -4 -4 -4 ------- Run | Yrd Mat Min Exi Min Mat Fac Low Low Dat Pro Fac Was Fac Low Zio Pro Fac Upp Upp War Pro Fac Ext Traps Triggered 12 | . 3 . . . . . . . . . 3 . 2 . . . 3 . . . . 1 . Indirectly . | . . . . . . . . . . . . . . . . . . . . . . . . Trap Hack Attempts . | . . . . . . . . . . . . . . . . . . . . . . . . Triggered . | . . . . . . . . . . . . . . . . . . . . . . . . Disarmed 4 | . 4 . . . . . . . . . . . . . . . . . . . . . . Reprogrammed . | . . . . . . . . . . . . . . . . . . . . . . . . Reused . | . . . . . . . . . . . . . . . . . . . . . . . . Traps Extracted . | . . . . . . . . . . . . . . . . . . . . . . . . Installed . | . . . . . . . . . . . . . . . . . . . . . . . . Triggered 6 | . . . . . . . . . . . . . . . . . . 1 . 5 . . . Machines | -11 -10 -10 -10 -9 -8 -7 -7 -7 -7 -6 -6 -6 -6 -6 -6 -5 -5 -5 -5 -5 -4 -4 -4 ---------- Run | Yrd Mat Min Exi Min Mat Fac Low Low Dat Pro Fac Was Fac Low Zio Pro Fac Upp Upp War Pro Fac Ext Machines Disabled 6 | . . . . . . . . . . . 3 . . . . . . . . . . . 3 Max in Single Turn 3 | . . . . . . . . . . . 3 . . . . . . . . . . . 2 Garrison Access 2 | . . . . . 1 . . . . . 1 . . . . . . . . . . . . Machines Repaired . | . . . . . . . . . . . . . . . . . . . . . . . . Machines Dismantled . | . . . . . . . . . . . . . . . . . . . . . . . . Machines Sabotaged . | . . . . . . . . . . . . . . . . . . . . . . . . Overloaded Fab Kills . | . . . . . . . . . . . . . . . . . . . . . . . . Hacking | -11 -10 -10 -10 -9 -8 -7 -7 -7 -7 -6 -6 -6 -6 -6 -6 -5 -5 -5 -5 -5 -4 -4 -4 --------- Run | Yrd Mat Min Exi Min Mat Fac Low Low Dat Pro Fac Was Fac Low Zio Pro Fac Upp Upp War Pro Fac Ext Machines Accessed 44 | . 3 . . . 3 3 . . 4 . 4 . 9 . 1 . 7 1 . 2 . 7 . Terminals 20 | . 3 . . . 2 1 . . . . 3 . 3 . . . 4 1 . . . 3 . Fabricators 8 | . . . . . . 1 . . . . . . 3 . . . 2 . . . . 2 . Repair Stations . | . . . . . . . . . . . . . . . . . . . . . . . . Recycling Units 4 | . . . . . . 1 . . . . . . 2 . . . . . . . . 1 . Scanalyzers . | . . . . . . . . . . . . . . . . . . . . . . . . Garrison Access 5 | . . . . . 1 . . . . . 1 . 1 . . . 1 . . . . 1 . Total Hacks 134 | . 7 . . . 6 9 . . 30 . 12 . 20 . 5 . 21 1 . 2 . 21 . Successful 81 | . 2 . . . 2 3 . . 30 . 6 . 11 . 5 . 9 1 . 2 . 10 . Failed 53 | . 5 . . . 4 6 . . . . 6 . 9 . . . 12 . . . . 11 . Catastrophic 12 | . . . . . . 1 . . . . 2 . 2 . . . 6 . . . . 1 . Database Lockouts . | . . . . . . . . . . . . . . . . . . . . . . . . Manual 39 | . 2 . . . 2 5 . . . . 6 . 8 . . . 5 . . 1 . 9 1 Terminals 53 | . 7 . . . 3 5 . . . . 8 . 8 . . . 11 1 . . . 10 . Fabricators 25 | . . . . . . 2 . . . . . . 9 . . . 8 . . . . 6 . Repair Stations . | . . . . . . . . . . . . . . . . . . . . . . . . Recycling Units 5 | . . . . . . 2 . . . . . . 2 . . . . . . . . 1 . Scanalyzers . | . . . . . . . . . . . . . . . . . . . . . . . . Garrison Access 14 | . . . . . 3 . . . . . 4 . 1 . . . 2 . . . . 4 . Terminal Hacks 49 | . 1 . . . 1 1 . . 30 . 3 . . . 5 . 2 1 . 2 . 3 . Record 12 | . . . . . . . . . 11 . . . . . . . . 1 . . . . . Part Schematic 18 | . . . . . . . . . 11 . . . . . 5 . . . . . . 2 . Robot Schematic 5 | . . . . . . . . . 5 . . . . . . . . . . . . . . Robot Analysis 1 | . . . . . . . . . . . 1 . . . . . . . . . . . . Prototype ID Bank 4 | . . . . . 1 . . . 3 . . . . . . . . . . . . . . Open Door 2 | . . . . . . . . . . . . . . . . . . . . 2 . . . Branch Access Points 3 | . . . . . . 1 . . . . . . . . . . 1 . . . . 1 . Fabricator Index 1 | . . . . . . . . . . . 1 . . . . . . . . . . . . Locate Traps 1 | . . . . . . . . . . . . . . . . . 1 . . . . . . Disarm Traps 1 | . 1 . . . . . . . . . . . . . . . . . . . . . . Zone Layout 1 | . . . . . . . . . . . 1 . . . . . . . . . . . . Fabricator Hacks 18 | . . . . . . 1 . . . . . . 7 . . . 5 . . . . 5 . Network Status 4 | . . . . . . 1 . . . . . . 1 . . . 1 . . . . 1 . Load Schematic 7 | . . . . . . . . . . . . . 3 . . . 2 . . . . 2 . Build 7 | . . . . . . . . . . . . . 3 . . . 2 . . . . 2 . Repair Station Hacks . | . . . . . . . . . . . . . . . . . . . . . . . . Recycling Unit Hacks 4 | . . . . . . 1 . . . . . . 2 . . . . . . . . 1 . Report Inventory 1 | . . . . . . . . . . . . . 1 . . . . . . . . . . Retrieve Matter 1 | . . . . . . . . . . . . . 1 . . . . . . . . . . Retrieve Components 2 | . . . . . . 1 . . . . . . . . . . . . . . . 1 . Scanalyzer . | . . . . . . . . . . . . . . . . . . . . . . . . Garrison Access Hacks 1 | . . . . . . . . . . . 1 . . . . . . . . . . . . Seal Access 1 | . . . . . . . . . . . 1 . . . . . . . . . . . . Unauthorized Hacks 9 | . 1 . . . 1 . . . . . 2 . 2 . . . 2 . . . . 1 . Terminals 8 | . 1 . . . . . . . . . 2 . 2 . . . 2 . . . . 1 . Assimilate 1 | . . . . . . . . . . . . . 1 . . . . . . . . . . Botnet 7 | . 1 . . . . . . . . . 2 . 1 . . . 2 . . . . 1 . Fabricators . | . . . . . . . . . . . . . . . . . . . . . . . . Repair Stations . | . . . . . . . . . . . . . . . . . . . . . . . . Recycling Units . | . . . . . . . . . . . . . . . . . . . . . . . . Scanalyzers . | . . . . . . . . . . . . . . . . . . . . . . . . Garrison Access 1 | . . . . . 1 . . . . . . . . . . . . . . . . . . Jam 1 | . . . . . 1 . . . . . . . . . . . . . . . . . . Data Cores Recovered 1 | . . . . . . . . . . . . . . . . . . . . . . 1 . Used 1 | . . . . . . . . . . . . . . . . . . . . . . 1 . Hacking Detections 30 | . 2 . . . 3 2 . . . . 3 . 8 . . . 7 . . . . 5 . Full Trace Events 8 | . . . . . . . . . . . . . 3 . . . 3 . . . . 2 . Feedback Events . | . . . . . . . . . . . . . . . . . . . . . . . . Feedback Blocked 1 | . . . . . . . . . . . . . . . . . 1 . . . . . . Robot Schematics Acquired 8 | . . . . . . . . . 5 . . . . . 3 . . . . . . . . Robots Built . | . . . . . . . . . . . . . . . . . . . . . . . . Authchips . | . . . . . . . . . . . . . . . . . . . . . . . . Time . | . . . . . . . . . . . . . . . . . . . . . . . . Total Robot Build Rating . | . . . . . . . . . . . . . . . . . . . . . . . . Part Schematics Acquired 32 | . . . . . . . . . 11 . . . . . 19 . . . . . . 2 . Parts Built 7 | . . . . . . . . . . . . . 3 . . . 2 . . . . 2 . Authchips . | . . . . . . . . . . . . . . . . . . . . . . . . Time 912 | . . . . . . . . . . . . . 380 . . . 304 . . . . 228 . Total Part Build Rating 35 | . . . . . . . . . . . . . 15 . . . 10 . . . . 10 . Parts Repaired . | . . . . . . . . . . . . . . . . . . . . . . . . Time . | . . . . . . . . . . . . . . . . . . . . . . . . Parts Recycled . | . . . . . . . . . . . . . . . . . . . . . . . . Recycled Matter . | . . . . . . . . . . . . . . . . . . . . . . . . Retrieved Matter . | . . . . . . . . . . . . . . . . . . . . . . . . Retrieved Components 4 | . . . . . . 2 . . . . . . . . . . . . . . . 2 . Parts Scanalyzed . | . . . . . . . . . . . . . . . . . . . . . . . . Part Schematics Acquired . | . . . . . . . . . . . . . . . . . . . . . . . . Parts Damaged . | . . . . . . . . . . . . . . . . . . . . . . . . Bothacking | -11 -10 -10 -10 -9 -8 -7 -7 -7 -7 -6 -6 -6 -6 -6 -6 -5 -5 -5 -5 -5 -4 -4 -4 ------------ Run | Yrd Mat Min Exi Min Mat Fac Low Low Dat Pro Fac Was Fac Low Zio Pro Fac Upp Upp War Pro Fac Ext Used RIF Installer . | . . . . . . . . . . . . . . . . . . . . . . . . Robots Hacked 1 | . . . . . . . . . . . . . . . . . . . . . . . 1 Non-combat 1 | . . . . . . . . . . . . . . . . . . . . . . . 1 Combat . | . . . . . . . . . . . . . . . . . . . . . . . . Robot Hacks Applied 1 | . . . . . . . . . . . . . . . . . . . . . . . 1 no_distress 1 | . . . . . . . . . . . . . . . . . . . . . . . 1 Relay Couplers Released . | . . . . . . . . . . . . . . . . . . . . . . . . Fabnet Peak Effective % . | . . . . . . . . . . . . . . . . . . . . . . . . Robots Rewired 11 | . . . . . . . . . . . . . . . . . . . . 5 . . 6 Allies Hacked 1 | . . . . . . . . . . . . . . . . . . . . . . . 1 Hacks Repelled . | . . . . . . . . . . . . . . . . . . . . . . . . Allies | -11 -10 -10 -10 -9 -8 -7 -7 -7 -7 -6 -6 -6 -6 -6 -6 -5 -5 -5 -5 -5 -4 -4 -4 -------- Run | Yrd Mat Min Exi Min Mat Fac Low Low Dat Pro Fac Was Fac Low Zio Pro Fac Upp Upp War Pro Fac Ext Total Allies 21 | . . 4 . . . . . . . . . 1 . . . . . . . 5 . . 11 Largest Group 9 | . . 3 3 2 . . . . . . . 1 . . . . . . . 5 . . 9 Highest-Rated Group 385 | . . 40 40 24 . . . . . . . 31 . . . . . . . 293 . . 385 Highest-Rated Ally 96 | . . 31 16 16 . . . . . . . 31 . . . . . . . 68 . . 96 Total Orders . | . . . . . . . . . . . . . . . . . . . . . . . . Ally Attacks 186 | . . 4 . 24 . . . . . . . 13 . . . . . . . . . . 145 Total Damage 4691 | . . 48 . 233 . . . . . . . 187 . . . . . . . . . . 4223 Kills 20 | . . 1 . 5 . . . . . . . 1 . . . . . . . . . . 13 Allies Corrupted 1 | . . . . 1 . . . . . . . . . . . . . . . . . . . Allies Melted 1 | . . . . . . . . . . . . . . . . . . . . . . . 1 Intel | -11 -10 -10 -10 -9 -8 -7 -7 -7 -7 -6 -6 -6 -6 -6 -6 -5 -5 -5 -5 -5 -4 -4 -4 ------- Run | Yrd Mat Min Exi Min Mat Fac Low Low Dat Pro Fac Was Fac Low Zio Pro Fac Upp Upp War Pro Fac Ext Robot Analysis Total 1 | . . . . . . . . . . . 1 . . . . . . . . . . . . Derelict Logs Recovered 13 | . . 2 . 2 . . . 1 . 2 . . . . 1 1 . 2 1 . 1 . . Drone Launches . | . . . . . . . . . . . . . . . . . . . . . . . . Drone Recoveries . | . . . . . . . . . . . . . . . . . . . . . . . . Decoded 0b10 Intel 36 | . . . . . . . . . . . . . . . . . 13 . . . . 13 10 Traps 28 | . . . . . . . . . . . . . . . . . 7 . . . . 12 9 Emergency Access 8 | . . . . . . . . . . . . . . . . . 6 . . . . 1 1 Exploration | -11 -10 -10 -10 -9 -8 -7 -7 -7 -7 -6 -6 -6 -6 -6 -6 -5 -5 -5 -5 -5 -4 -4 -4 ------------- Run | Yrd Mat Min Exi Min Mat Fac Low Low Dat Pro Fac Was Fac Low Zio Pro Fac Upp Upp War Pro Fac Ext Turns Passed 8729 | 94 395 644 413 366 897 266 44 76 20 204 329 35 604 28 326 231 444 143 90 379 104 640 1957 Spaces Moved 12878 | 53 232 386 241 233 371 494 168 292 76 583 787 113 1233 86 887 530 1065 468 348 803 322 1516 1591 Core 41 | 5 . . . . . . . . . . . . . . . . . . . . . . 36 Treads 1233 | 48 232 386 210 . 352 5 . . . . . . . . . . . . . . . . . Legs 394 | . . . . . . . . . . . . . . . . . . . . . . . 394 Wheels 283 | . . . 31 233 19 . . . . . . . . . . . . . . . . . . Hover . | . . . . . . . . . . . . . . . . . . . . . . . . Flight 10927 | . . . . . . 489 168 292 76 583 787 113 1233 86 887 530 1065 468 348 803 322 1516 1161 Fastest Speed 15 | 50 160 160 130 130 130 26 26 26 26 26 26 28 26 27 25 25 15 18 25 24 20 20 25 Average Speed 44 | 149 160 160 169 130 159 27 26 26 26 26 28 28 32 30 25 25 23 24 25 24 25 21 53 Slowest Speed 455 | 160 160 160 240 130 167 167 26 26 26 26 104 28 34 34 27 25 29 25 25 29 29 94 455 Overloaded Moves 69 | . . . . . . . . . . . . . . . . . 41 1 . . . 12 15 Propulsion Burnouts . | . . . . . . . . . . . . . . . . . . . . . . . . Robots Hopped 42 | . . . . . . . 1 2 . . 3 . 11 1 . 1 5 6 . 3 . 6 3 Cave-ins Triggered . | . . . . . . . . . . . . . . . . . . . . . . . . Exploration Rate (%) 49 | 4 40 89 55 45 29 14 40 43 68 61 20 81 27 14 83 67 31 78 67 94 60 30 48 Regions Visited 23 Branch Regions 15 Pre-discovered Areas 8 | . . 2 . 2 . . . . 1 . . . . . 3 . . . . . . . . Known Exits Taken 14 | . . . . . . 1 1 1 1 1 . . 1 . 1 1 1 1 1 1 1 1 . Unknown Exits Taken 7 | 1 1 1 1 1 1 . . . . . . . . 1 . . . . . . . . . Scrap Searched 21 | . . 1 . 1 . . 1 2 . 1 . . . . 4 3 . 2 4 . 2 . . Spaces Dug 42 | . . . . . . . . . . 14 . . . . . . 11 . . . . 17 . Terrain Destroyed 256 | . . . . . 24 . . . . 54 35 . 8 . . 16 11 . . . 27 17 64 Melee 28 | . . . . . . . . . . . . . . . . . 11 . . . . 17 . Projectile . | . . . . . . . . . . . . . . . . . . . . . . . . AOE 228 | . . . . . 24 . . . . 54 35 . 8 . . 16 . . . . 27 . 64 Terrain Rammed . | . . . . . . . . . . . . . . . . . . . . . . . . Walls Destroyed . | . . . . . . . . . . . . . . . . . . . . . . . . Machines Disabled . | . . . . . . . . . . . . . . . . . . . . . . . . Actions | -11 -10 -10 -10 -9 -8 -7 -7 -7 -7 -6 -6 -6 -6 -6 -6 -5 -5 -5 -5 -5 -4 -4 -4 --------- Run | Yrd Mat Min Exi Min Mat Fac Low Low Dat Pro Fac Was Fac Low Zio Pro Fac Upp Upp War Pro Fac Ext Total 15390 | 65 244 402 247 285 529 632 166 289 75 624 889 116 1431 85 985 616 1194 484 349 975 340 1783 2585 Wait 1890 | . . . . 43 29 105 . . . 30 45 . 177 1 92 72 96 18 1 128 11 194 848 Move 12773 | 52 231 385 240 232 370 493 165 287 75 582 781 112 1210 83 886 527 1055 455 347 796 321 1503 1585 Hop 41 | . . . . . . . 1 2 . . 3 . 11 1 . 1 4 6 . 3 . 6 3 Pick Up 89 | 7 3 5 2 1 21 6 . . . . 3 2 8 . . 2 1 1 . 2 1 13 11 Fast Attach 55 | 5 . . 1 . 2 2 . . . 1 3 . 3 . 2 2 6 3 1 2 . 4 18 Attach 57 | 1 . . . 2 11 7 . . . 1 7 . 4 . . 2 2 . . . 3 12 5 Detach 26 | . . . 1 . 1 2 . . . 1 7 . 1 . . 1 . . . . . 8 4 Swap 40 | . . . 1 . 8 1 . . . 1 . . 7 . 3 1 2 . . 4 1 7 4 Drop 81 | . 2 4 2 . 4 16 . . . . 5 2 10 . 1 3 1 . . 2 1 11 17 Fire 129 | . 8 8 . 5 83 . . . . 8 4 . . . . 2 . . . . 2 . 9 Melee 124 | . . . . . . . . . . . . . . . 1 3 27 1 . 1 . 25 66 Ram 11 | . . . . 1 . . . . . . . . . . . . . . . . . . 10 Kick . | . . . . . . . . . . . . . . . . . . . . . . . . Crush 1 | . . . . 1 . . . . . . . . . . . . . . . . . . . Escape Stasis 31 | . . . . . . . . . . . 31 . . . . . . . . . . . . Rewire 42 | . . . . . . . . . . . . . . . . . . . . 37 . . 5 Trap . | . . . . . . . . . . . . . . . . . . . . . . . . Miscellaneous . | . . . . . . . . . . . . . . . . . . . . . . . . Route ------- -11/Scrapyard -10/Materials (discovered 2 exits: [*Mat] / [*Min]) -10/Mines (discovered 3 exits: [*Mat x2] / [*Exi]) -10/Exiles -9/Mines -8/Materials -7/Factory (discovered 2 exits: *Low x2) -7/Lower Caves -7/Lower Caves (discovered 2 exits: *Fac / *Dat) -7/Data Miner -6/Proximity Caves -6/Factory (discovered 2 exits: Fac / Low) -6/Waste -6/Factory (discovered 2 exits: *Low x2) -6/Lower Caves -6/Zion -5/Proximity Caves -5/Factory (discovered 4 exits: *Fac x2 / *Upp x2) -5/Upper Caves -5/Upper Caves -5/Warlord -4/Proximity Caves -4/Factory (discovered 4 exits: Upp x2 / *Ext x2) -4/Extension History --------- Turn | Location | Event 22 | -11/Scrapyard | Discovered new exit (range 15) 95 | -11/Scrapyard | Entered Materials 193 | -10/Materials | Discovered new exit (range 3) 316 | -10/Materials | Build established: Mutant 448 | -10/Materials | Discovered new exit (range 12) 490 | -10/Materials | Entered Mines 493 | -10/Mines | Received a Mining Laser from a helpful Derelict 519 | -10/Mines | Met a Derelict bent on vengeance 559 | -10/Mines | Learned location of Zion (-6) 818 | -10/Mines | Discovered new exit (range 5) 827 | -10/Mines | Assisted by bots powering up and referring to "LRC-V3" 853 | -10/Mines | Joined a pair of Derelicts in attacking an 0b10 outpost 1072 | -10/Mines | Discovered new exit (range 12) 1126 | -10/Mines | Deemed a non-threat by the Exiles lab entrance 1128 | -10/Mines | Discovered new exit (range 5) 1134 | -10/Mines | Entered Exiles 1134 | -10/Exiles | Accompanied by 3 allies 1157 | -10/Exiles | Discovered new exit (range 14) 1203 | -10/Exiles | Met 8R-AWN 1222 | -10/Exiles | Met EX-HEX 1287 | -10/Exiles | Met EX-DEC 1547 | -10/Exiles | Entered Mines 1547 | -9/Mines | Accompanied by 3 allies 1671 | -9/Mines | Assembled infested the area 1676 | -9/Mines | Assisted by a Guerilla fighting off Assembled 1698 | -9/Mines | Learned location of Storage (-8) 1801 | -9/Mines | A weapon hastily lodged in a ceiling crevice suddenly fell to the ground 1894 | -9/Mines | Discovered new exit (range 15) 1913 | -9/Mines | Entered Materials 1913 | -8/Materials | Evolved 4 slots: Propulsion x2, Utility x2 1998 | -8/Materials | Garrison activated, responded to threat 2363 | -8/Materials | Lost 4 parts (2n1u1w) 2483 | -8/Materials | Discovered new exit (range 5) 2591 | -8/Materials | Build established: Scavenger-Mutant 2625 | -8/Materials | Lost 3 parts (1p2n) 2810 | -8/Materials | Entered Factory 2810 | -7/Factory | Evolved 2 slots: Propulsion x1, Utility x1 3049 | -7/Factory | Identified exit to Lower Caves 3076 | -7/Factory | Entered Lower Caves 3077 | -7/Lower Caves | Encountered a Warlord checkpoint 3110 | -7/Lower Caves | Build established: Scavenger-Sprinter 3118 | -7/Lower Caves | Discovered new exit (range 8) 3120 | -7/Lower Caves | Identified exit to Lower Caves 3120 | -7/Lower Caves | Entered another Lower Caves area 3125 | -7/Lower Caves | Discovered new exit (range 11) 3128 | -7/Lower Caves | Identified exit to Factory 3194 | -7/Lower Caves | Learned location of 1 exit from Factory 3194 | -7/Lower Caves | Discovered new exit (range 10) 3196 | -7/Lower Caves | Identified exit to Data Miner 3196 | -7/Lower Caves | Entered Data Miner 3196 | -7/Data Miner | Discovered new exit (range 6) 3201 | -7/Data Miner | Met Data Miner 3208 | -7/Data Miner | Learned location of Section 7 (-2) 3208 | -7/Data Miner | Acquired the access code to Warlord's prototype stash 3210 | -7/Data Miner | Received God Mode back door access code from Data Miner 3215 | -7/Data Miner | Identified exit to Proximity Caves 3216 | -7/Data Miner | Entered Proximity Caves 3217 | -6/Proximity Caves | Learned 12 Factory zone layouts 3252 | -6/Proximity Caves | Learned 8 Factory zone layouts 3385 | -6/Proximity Caves | Spotter reported a threat 3418 | -6/Proximity Caves | Discovered exit to Factory (range 9) 3420 | -6/Proximity Caves | Entered Factory 3420 | -6/Factory | Evolved 2 slots: Utility x2 3421 | -6/Factory | Identified exit to Factory 3422 | -6/Factory | Identified exit to Lower Caves 3749 | -6/Factory | Sucked down chute 3749 | -6/Factory | Entered Waste 3750 | -6/Waste | Met a frightened Derelict 3751 | -6/Waste | Spotted C-40 Crusher 3758 | -6/Waste | Found Fusion Bomb Launcher 3762 | -6/Waste | Spotted C-40 Crusher 3763 | -6/Waste | Spotted C-40 Crusher 3770 | -6/Waste | Spotted C-40 Crusher 3770 | -6/Waste | Spotted C-40 Crusher 3773 | -6/Waste | Spotted C-40 Crusher 3777 | -6/Waste | Discovered new exit (range 11) 3782 | -6/Waste | Found Prototype Launcher 3784 | -6/Waste | Identified exit to Factory 3784 | -6/Waste | Entered Factory 3821 | -6/Factory | Build established: Scavenger-Scout 3830 | -6/Factory | Spotted B-75 Beast 3877 | -6/Factory | Discovered exit to Lower Caves (range 17) 3922 | -6/Factory | Identified Mni. Smartbomb Launcher 4017 | -6/Factory | Fabricated Cld. Cesium-ion Thruster? 4047 | -6/Factory | Discovered exit to Lower Caves (range 15) 4051 | -6/Factory | Fabricated Cld. Cesium-ion Thruster? 4116 | -6/Factory | Fabricated Cld. Cesium-ion Thruster? 4133 | -6/Factory | Build established: Scout 4388 | -6/Factory | Entered Lower Caves 4414 | -6/Lower Caves | A Derelict revealed a hidden shortcut to a safe place 4416 | -6/Lower Caves | Entered Zion 4442 | -6/Zion | Discovered new exit (range 12) 4452 | -6/Zion | Given the Hacking Drone Bay 4643 | -6/Zion | Found CR-A16's Pointy Stick 4735 | -6/Zion | Given A8's code to call for help 4742 | -6/Zion | Identified exit to Proximity Caves 4742 | -6/Zion | Entered Proximity Caves 4784 | -5/Proximity Caves | Spotted B-75 Beast 4913 | -5/Proximity Caves | Learned location of 1 exit from Upper Caves 4968 | -5/Proximity Caves | Discovered exit to Factory (range 19) 4973 | -5/Proximity Caves | Entered Factory 4973 | -5/Factory | Evolved 2 slots: Power x1, Propulsion x1 5060 | -5/Factory | Incoming investigation squad redirected 5187 | -5/Factory | Fabricated Cld. Cesium-ion Thruster (x1) 5252 | -5/Factory | Garrison activated, responded to threat 5273 | -5/Factory | Fabricated Cld. Cesium-ion Thruster? 5314 | -5/Factory | Discovered new exit (range 5) 5315 | -5/Factory | Identified exit to Factory 5338 | -5/Factory | Lost 3 parts (2n1u) 5348 | -5/Factory | Discovered exit to Factory (range 20) 5352 | -5/Factory | Identified exit to Upper Caves 5417 | -5/Factory | Entered Upper Caves 5418 | -5/Upper Caves | Identified exit to Upper Caves 5444 | -5/Upper Caves | Learned Factory garrison access intel 5474 | -5/Upper Caves | Ambushed by research squad 5474 | -5/Upper Caves | Learned Factory terminal intel 5530 | -5/Upper Caves | Lost 4 parts (1p2u1w) 5537 | -5/Upper Caves | Encountered a Warlord checkpoint 5540 | -5/Upper Caves | Attracted the attention of an 0b10 checkpoint 5560 | -5/Upper Caves | Entered another Upper Caves area 5624 | -5/Upper Caves | Learned Factory non-interactive machine intel 5627 | -5/Upper Caves | Discovered new exit (range 12) 5650 | -5/Upper Caves | Identified exit to Warlord 5650 | -5/Upper Caves | Entered Warlord 5659 | -5/Warlord | System corruption cleaned by Quarantine Array 5817 | -5/Warlord | Visited the Vortex Lab 5821 | -5/Warlord | Warlord's base attacked by MAIN.C 5849 | -5/Warlord | Met Warlord 5854 | -5/Warlord | Opened Warlord's prototype stash 5856 | -5/Warlord | Found Prototype Device 5856 | -5/Warlord | Identified Exp. Cloaking Device 5860 | -5/Warlord | Found Prototype Hackware 5860 | -5/Warlord | Identified System Mapper 6012 | -5/Warlord | Opened side exit 6016 | -5/Warlord | Discovered new exit (range 9) 6018 | -5/Warlord | Identified exit to Proximity Caves 6029 | -5/Warlord | Entered Proximity Caves 6041 | -4/Proximity Caves | Learned location of 1 exit from Research 6061 | -4/Proximity Caves | Spotted B-86 Titan 6106 | -4/Proximity Caves | Lost 3 parts (1p1n1w) 6125 | -4/Proximity Caves | Discovered exit to Factory (range 12) 6133 | -4/Proximity Caves | Entered Factory 6133 | -4/Factory | Evolved 2 slots: Utility x2 6134 | -4/Factory | Loaded intel: 211 non-interactive machine locations 6135 | -4/Factory | Loaded intel: 27 terminal locations 6136 | -4/Factory | Loaded intel: 4 garrison access locations 6162 | -4/Factory | Build established: Hacker-Sprinter 6370 | -4/Factory | Fabricated Cld. Cesium-ion Thruster (x1) 6420 | -4/Factory | Fabricated Cld. Cesium-ion Thruster? 6496 | -4/Factory | Build established: Hacker-Scout 6683 | -4/Factory | Lost 5 parts (2p3n) 6707 | -4/Factory | Identified exit to Upper Caves 6707 | -4/Factory | Identified exit to Extension 6773 | -4/Factory | Entered Extension 6934 | -4/Extension | Lost 3 parts (1p2n) 7698 | -4/Extension | Disrupted transfer network 7809 | -4/Extension | Enhanced Grunt warped into view, answering call for help 7810 | -4/Extension | Enhanced Grunt warped into view, answering call for help 8023 | -4/Extension | First assault squad dispatched 8050 | -4/Extension | Incoming assault squad redirected 8103 | -4/Extension | Core integrity fell below 50% 8147 | -4/Extension | Lost 4 parts (1p2n1u) 8268 | -4/Extension | Rescued a captive Derelict 8313 | -4/Extension | Rescued a captive Derelict 8313 | -4/Extension | Rescued a captive Derelict 8414 | -4/Extension | Build established: Hacker-Mutant 8441 | -4/Extension | Incoming assault squad redirected 8539 | -4/Extension | Spotted B-86 Titan 8545 | -4/Extension | Incoming assault squad redirected 8581 | -4/Extension | Allies destroyed B-86 Titan 8587 | -4/Extension | Spotted B-86 Titan 8649 | -4/Extension | Lost 7 allies 8707 | -4/Extension | Core integrity fell below 20% 8730 | -4/Extension | Destroyed by Y-64 Sentinel with KE Penetrator Last Messages --------------- 08703_ VTOL Module destroyed. 08703_ Slammed into P-70 Sage. 08715_ >> DECODED: Shock Trap location. 08717_ W-44 Eye sends out distress signal. 08720_ Slammed into W-44 Eye. 08720_ Adv. Terrain Scan Processor destroyed. 08720_ System corrupted by crushing effect (+5). 08721_ Slammed into W-44 Eye. 08723_ Slammed into H-77 Assassin. 08724_ Penetrated by Slug. 08724_ Slug penetrates H-77 Assassin. 08724_ Slammed into W-44 Eye. 08724_ Imp. System Shield destroyed. 08724_ System corrupted by crushing effect (+2). 08724_ Destabilizing: Core damaged (-23). 08727_ Slammed into H-77 Assassin. 08727_ Destabilizing: Core damaged (-11). 08727_ Penetrated by Slug. 08728_ Slammed into H-77 Assassin. 08730_ Penetrated by Slug. Map ----- +----------------------------------------------------+ | #?????????????????????????? | | ### ############ #?????????????????????????? | | #?# * #??????????# #?????????????????????????? | | ######+###??????????# #?????????????????????????? | | ## % #???????????# #?????????????????????????? | | ## ############# ####?????????^????????????? | | ## %%/ "% #?????????????????^????? | | + ################ #??????????????????????? | | ### #??????????????# #??????????????????????? | | ??# #??????????????#p#??????????????????????? | | ??########??????????????# #??????????????????????? | | ????????????????????????#p#??????????????????????? | | ????????????????????????# #??????????????????????? | | ????????????????????????# #??????????????????????? | | ????????????????????????#p#??????????????????????? | | ????????????????????????#%#??????????????????????? | | ????????????????????????#%#??????????????????????? | | ????????????????????????#%#??????????????????????? | | ????????????????????????#%#??????????????????????? | | ????????????????????????#h#??????????????????????? | | ????????????????????????#w#??????????????????????? | | ????????????????????????# #??????????????????????? | | ????????????????????????#%#??????????????????????? | | ????????????????????????#%#??????????????????????? | | ????????????????????????#h#??????????????????????? | | ????????????????????????#@#??????????????????????? | | ????????????????????????#Y#??????????????????????? | | ????????????????????????" "??????????????????????? | | ????????????????????????" "??????????????????????? | | ??????????????????????? ? ???????????????????? | | ????????#???????#?#???? ???????????????????? | | #######"#######"#"##"## %* ??????????????????? | | %*%! ??????????????????? | | ==%% % ?????????????????? | | % [ !=% % ?????????????????? | | [%%=%!% % %% ?????????????????? | | % %%%=%! t ?????????????????? | | ##################=#### u ?????????????????? | | ??????????????????????# % % ??????????????????? | | ??????????????????????# ????????????????????? | | ??????????????????????# ???????????????????? | | ??????????????????????# ???????????????????? | | ???????????????????????#####T????????????????????? | | ?????????????????????????????????????????????????? | | ?????????????????????????????????????????????????? | | | | | | | | | | | +----------------------------------------------------+ Best States ------------- Heat Dissipation 43 Energy Generation 37 Energy Capacity 325 Matter Stores 300 Matter Capacity 300 Sight Range 20 Robot Scan Range 16 Terrain Scan Range 20 Terrain Scan Density 210 Cloak Strength 4 Armor Coverage 600 Evasion (%) 66 Targeting Accuracy 8 Recoil Reduction 4 Offensive Hacking 20 Defensive Hacking 26 Item Schematics ----------------- Combat Drone Bay | -7/Data Miner | Free Lgt. Regenerative Plating | -7/Data Miner | Free Cld. Cesium-ion Thruster | -7/Data Miner | Free Exp. Targeting Computer | -7/Data Miner | Free Imp. Lightning Gun | -7/Data Miner | Free Field Propulsion Drive | -7/Data Miner | Free Adv. Field Recycling Unit | -7/Data Miner | Free Lrn. Proton Cannon | -7/Data Miner | Free Imp. Remote Datajack | -7/Data Miner | Free Imp. Trap Scanner | -7/Data Miner | Free Hyp. Mass Driver | -7/Data Miner | Free Imp. Shock Absorption System | -6/Zion | Archive Cloaking Device | -6/Zion | Archive Lgt. Fission Core | -6/Zion | Archive Point Defense System | -6/Zion | Archive Railgun | -6/Zion | Archive Thermic Laser | -6/Zion | Archive Adv. Signal Interpreter | -6/Zion | Archive Hyp. Gauss Cannon | -6/Zion | Archive Fission Core | -6/Zion | Archive Recoil Nullifier | -6/Zion | Archive Adv. Heat Sink | -6/Zion | Archive Arm. Medium Treads | -6/Zion | Archive Impulse Thruster | -6/Zion | Archive Riot Gun | -6/Zion | Free Battle Cannon | -6/Zion | Free Hvy. Riot Gun | -6/Zion | Free Enh. Flamer | -6/Zion | Free Ripper | -6/Zion | Free Hvy. Mass Driver | -6/Zion | Archive Adv. Hacking Suite | -4/Factory | Hacked Adv. System Shield | -4/Factory | Hacked Robot Schematics ------------------ B-48 Gladiator | -7/Data Miner | Free W-25 Informer | -7/Data Miner | Free L-41 Fighter | -7/Data Miner | Free A-15 Conveyor | -7/Data Miner | Free G-50 Soldier | -7/Data Miner | Free R-06 Scavenger | -6/Zion | Archive T-07 Excavator | -6/Zion | Archive S-27 Virus | -6/Zion | Archive Fabricated ------------ Cld. Cesium-ion Thruster | x1 | -6/Factory Cld. Cesium-ion Thruster | x1 | -6/Factory Cld. Cesium-ion Thruster | x1 | -6/Factory Cld. Cesium-ion Thruster | x1 | -5/Factory Cld. Cesium-ion Thruster | x1 | -5/Factory Cld. Cesium-ion Thruster | x1 | -4/Factory Cld. Cesium-ion Thruster | x1 | -4/Factory Alien Tech Used ----------------- None Achievements -------------- None Challenges ------------ None Game ------ Seed BombMediumHumpback Manual? 0 Play Time 01:50:02 Cumulative 156.8 hours Start 2025.01.18 @ 20:43:29 End 2025.01.18 @ 22:43:34 Sessions 1 Manual Loads 0 Difficulty Rogue Special Mode None Game No. 129 Rogue 129 Adventurer 0 Explorer 0 Win Type - Total 3 Types 1/0/1/1/0/0/0/0/0 Lore% 68 Gallery% 60 Achievement% 57 Wizard Run 0 Options --------- Layout 1 ASCII 0 Keyboard 1 Movement Arrows Keybinds 0 Fullscreen 2 Font 24/Smallcaps Map View 50x35 Zoom Use 0% Tactical HUD 1 Map Filters NONE Filters NONE Steam 1 RUN: 5fee9024-2f98-404a-9ebd-06d3639b8b00